[Event "37th ECCC 2022"]
[Site "Mayrhofen"]
[Date "2022.10.05"]
[Round "3.19"]
[White "Erigaisi Arjun"]
[Black "Tabatabaei, M. Amin"]
[Result "1-0"]
[ECO "D14"]
[WhiteElo "2728"]
[BlackElo "2657"]
[Annotator "TA"]
[PlyCount "151"]
[EventDate "2022.10.03"]
[EventType "team-tourn"]
[EventCountry "AUT"]
[SourceTitle "playchess.com"]
[Source "ChessBase"]
[SourceQuality "1"]
[TimeControl "40/5400+30:1800+30"]

{[%evp 16,151,0,0,11,0,0,0,14,11,28,28,29,33,24,16,22,25,39,25,36,36,36,36,37,36,41,44,44,39,67,36,39,41,34,33,50,52,63,64,72,37,87,76,81,77,66,72,108,112,115,112,112,68,92,74,115,86,108,108,106,106,103,105,94,96,104,98,95,85,111,112,123,94,123,102,102,101,110,109,149,100,96,76,78,0,95,95,98,112,75,16,118,74,725,725,743,682,6545,6464,5996,5996,5748,5704,5124,5089,1785,1468,1403,1357,1054,800,1151,924,10878,8889,29956,29958,29969,29965,29963,4780,4986,4598,29952,29952,29945,29959,5189,6122,29969,29970,29973,29974,29968,29974,29996,5125]} 1. d4 {[%emt 0:00:08]} d5 {[%emt 0:00:06]} 2. c4 {[%emt 0:00:05]} c6 {[%emt 0:00:04]} 3. Nf3 {[%emt 0:01:13]} Nf6 {[%emt 0:00:06]} 4. cxd5 {[%emt 0:00:06]} cxd5 {[%emt 0:00:07]} 5. Nc3 {[%emt 0:00:04]} Nc6 {[%emt 0:00:07]} 6. Bf4 {[%emt 0:00:05]} Bf5 {[%emt 0:01:34]} 7. Qb3 {[%emt 0:00:07]} Na5 {[%emt 0:00:07]} 8. Qa4+ {[%emt 0:00:05]} Bd7 {[%emt 0:00:06]} 9. Qc2 {[%emt 0:00:05]} e6 {[%emt 0:00:19] D14: Slav Defence: Exchange variation with ...Bf5.} 10. e3 {[%emt 0:00:11]} Rc8 {[%emt 0:00:05]} 11. Bd3 {[%emt 0:00:06]} Bb4 {[%emt 0:03:27][%cal Of6e4] The position is equal. now scores much better than the old 11...Be7.} 12. O-O {[%emt 0:01:37]} h6 {[%emt 0:04:50]} 13. h3 {[%emt 0:06:59]} O-O {[%emt 0:02:51]} 14. Rfc1 {[%emt 0:02:46]} a6 {[%emt 0:06:31]} 15. Qe2 {[%emt 0:04:43] [#]} Bxc3 $146 {[%emt 0:04:51]} ({Predecessor:} 15... Qe7 16. Ne5 Nc6 17. a3 Nxe5 18. Bxe5 Bxc3 19. bxc3 Ba4 20. c4 dxc4 21. Bxc4 Nd7 {½-½ (31) Williamson,H (2511)-Koshmak,I (2462) ICCF email 2020}) 16. bxc3 {[%emt 0:01:55]} Nc4 {[%emt 0:03:53]} 17. a4 {[%emt 0:07:47]} b5 {[%emt 0:09:10]} 18. Ne5 {[%emt 0:01:32]} Nxe5 {[%emt 0:07:13]} 19. Bxe5 {[%emt 0:03:28][%cal Ra4b5]} bxa4 {[%emt 0:01:37]} 20. Bxa6 {[%emt 0:00:43]} Ra8 {[%emt 0:01:00]} 21. Bd3 {[%emt 0:03:32] This bishop pair is nice.} Qe7 {[%emt 0:01:39]} 22. Rcb1 {[%emt 0:15:12]} Ra7 {[%emt 0:04:59]} 23. Bc2 {[%emt 0:06:04] White has more active pieces. The black rooks are badly placed.} (23. Rb6 $5 {[%cal Re5d6]}) 23... Rc8 {[%emt 0:02:46]} 24. Qd3 {[%emt 0:00:36]} g6 {[%emt 0:08:52]} 25. f3 {[%emt 0:13:04] Against Ne4} a3 {[%emt 0:00:44]} 26. Qd2 {[%emt 0:10:01]} Ba4 {[%emt 0:10:29]} (26... a2 $2 27. Rb2 $18) 27. Bd3 {[%emt 0:00:27]} Nd7 {[%emt 0:00:20]} 28. Bf4 {[%emt 0:01:40]} e5 {[%emt 0:05:19]} (28... h5 $14) 29. Bxh6 $16 {[%emt 0:01:11]} Bc6 {[%emt 0:01:07]} 30. dxe5 {[%emt 0:02:22]} Nxe5 {[%emt 0:00:45]} 31. Be2 {[%emt 0:01:08]} Qc5 {[%emt 0:03:54]} 32. Bg5 {[%emt 0:02:57]} Kg7 {[%emt 0:02:53]} 33. Qd4 {[%emt 0:02:56]} Qxd4 {[%emt 0:00:14]} 34. cxd4 {[%emt 0:00:05]} Nc4 {[%emt 0:00:23]} 35. e4 {[%emt 0:00:30]} f6 {[%emt 0:02:15]} 36. Bc1 {[%emt 0:00:52]} Ra4 {[%emt 0:02:14]} 37. Bxc4 {[%emt 0:05:18]} Rxc4 {[%emt 0:00:12]} 38. e5 {[%emt 0:00:49]} ({Reject} 38. Rxa3 $6 dxe4 39. Ra7+ Kg8 $11) 38... Rxd4 {[%emt 0:04:31]} 39. Rxa3 {[%emt 0:00:59]} fxe5 {[%emt 0:06:43]} (39... Rd1+ $2 40. Kh2 Kg8 41. exf6 $18) 40. Bb2 {[%emt 0:00:05]} Ra4 {[%emt 0:00:43]} 41. Bxe5+ {[%emt 0:31:11]} Kf7 {[%emt 0:30:03]} 42. Rd3 {[%emt 0:01:03]} Ra2 {[%emt 0:00:00]} 43. Rb6 {[%emt 0:00:00]} Ke6 {[%emt 0:00:00]} 44. f4 {[%emt 0:00:00] Strongly threatening Rg3.} g5 {[%emt 0:00:00]} 45. Rc3 {[%emt 0:00:00]} gxf4 {[%emt 0:00:00]} 46. Bxf4 {[%emt 0:00:00]} Kd7 {[%emt 0:00:00]} 47. Rg3 {[%emt 0:00:00]} Re2 {[%emt 0:00:00]} 48. Ra6 {[%emt 0:00:00]} ({White should try} 48. h4) 48... Ke6 {[%emt 0:00:00]} 49. Rc3 {[%emt 0:00:00]} Kd7 {[%emt 0:00:00]} 50. Rg3 {[%emt 0:00:00]} Ke6 $1 {[%emt 0:00:00]} 51. Be3 {[%emt 0:00:00]} Ke5 {[%emt 0:00:00]} 52. h4 {[%emt 0:00:00][%cal Bh3h4,Bh4h5,Bh5h6][%mdl 32]} d4 {[%emt 0:00:00] [#]} 53. Bf2 {[%emt 0:00:00]} (53. Ra5+ $1 $16 Ke4 54. Bg5) 53... Rd2 {[%emt 0:00:00]} (53... Kf4 $11) 54. Ra5+ {[%emt 0:00:00]} Ke6 $2 {[%emt 0:00:00][%mdl 8192] [#] This costs Black the game.} (54... Kf6 $16) 55. Rg6+ $1 $18 {[%emt 0:00:00]} Kf7 {[%emt 0:00:00]} 56. h5 {[%emt 0:00:00] Hoping for Ra7+.} Be4 {[%emt 0:00:00]} 57. Ra7+ {[%emt 0:00:00]} Kf8 {[%emt 0:00:00]} 58. Rf6+ {[%emt 0:00:00]} Kg8 {[%emt 0:00:00]} 59. h6 {[%emt 0:01:07]} d3 {[%emt 0:02:35]} 60. Rf4 {[%emt 0:04:20] White threatens Rg7+ and mate.} Rxf2 {[%emt 0:07:56]} 61. Rxf2 {[%emt 0:00:24][%mdl 4096] Endgame KRR-KRB} Rd8 {[%emt 0:00:09]} 62. Rd2 {[%emt 0:00:34]} Rd6 {[%emt 0:00:08]} 63. Re7 {[%emt 0:01:39]} Bh7 {[%emt 0:00:23]} 64. Kf2 {[%emt 0:01:40]} Rxh6 {[%emt 0:00:15]} 65. Rb2 {[%emt 0:00:05][%cal Rb2b8]} Rf6+ {[%emt 0:00:17]} 66. Ke3 {[%emt 0:00:06]} Kh8 {[%emt 0:00:45]} 67. g4 {[%emt 0:02:13]} Rh6 {[%emt 0:00:08]} 68. Re8+ {[%emt 0:00:40]} (68. Rd7 $142 Rg6 69. Rbb7 Bg8 70. Kf4 Be6 71. Rh7+ Kg8 72. Rhe7 Kh8 73. Re8+ Bg8 74. Rd8) 68... Bg8 {[%emt 0:00:06]} 69. Kxd3 {[%emt 0:00:09] Intending Ke4 and mate.} Rg6 {[%emt 0:00:49]} 70. Rb4 {[%emt 0:00:21]} Kg7 {[%emt 0:00:18]} 71. Ke3 {[%emt 0:00:31]} Kh6 {[%emt 0:00:12]} 72. Kf4 {[%emt 0:00:23] Rb5 would kill now.} Bh7 {[%emt 0:00:06]} 73. Rb7 {[%emt 0:00:46] White mates.} Ra6 {[%emt 0:00:36]} 74. Rh8 {[%emt 0:00:29]} Ra4+ {[%emt 0:00:29]} 75. Kg3 {[%emt 0:00:14]} Rxg4+ {[%emt 0:00:17]} 76. Kxg4 {[%emt 0:00:08] Weighted Error Value: White=0.12 (very precise) /Black=0.13 (very precise)} 1-0

[Event "37th ECCC 2022"]
[Site "Mayrhofen"]
[Date "2022.10.05"]
[Round "3.20"]
[White "Huschenbeth, Niclas"]
[Black "Saric, Ivan"]
[Result "1/2-1/2"]
[ECO "B92"]
[WhiteElo "2593"]
[BlackElo "2668"]
[Annotator "TA"]
[PlyCount "135"]
[EventDate "2022.10.03"]
[EventType "team-tourn"]
[EventCountry "AUT"]
[SourceTitle "playchess.com"]
[Source "ChessBase"]
[SourceQuality "1"]
[TimeControl "40/5400+30:1800+30"]

{[%evp 24,135,6,0,12,9,20,12,17,17,28,0,0,0,0,-5,-7,-29,-29,-29,-29,-41,-11,-21,0,-2,9,-15,-15,-22,-22,-32,-21,-29,54,46,49,42,45,50,64,57,67,70,52,60,81,70,71,43,40,8,8,11,8,0,0,0,0,0,8,8,8,8,8,0,0,0,0,0,0,0,0,0,0,0,0,0,0,0,0,0,0,-8,-8,-118,0,0,0,-88,0,0,0,0,0,0,0,0,0,0,0,0,0,0,0,0,0,0,0,0,0,0,0,0]} 1. e4 c5 {[%emt 0:00:06]} 2. Nf3 {[%emt 0:00:11]} d6 {[%emt 0:00:13]} 3. d4 {[%emt 0:00:04]} cxd4 {[%emt 0:00:03]} 4. Nxd4 {[%emt 0:00:12]} Nf6 {[%emt 0:00:07]} 5. Nc3 {[%emt 0:00:04]} a6 {[%emt 0:00:21]} 6. Be2 {[%emt 0:00:06]} e5 {[%emt 0:01:41]} 7. Nb3 {[%emt 0:00:06]} Be7 {[%emt 0:00:07]} 8. Be3 {[%emt 0:00:09]} Be6 {[%emt 0:01:05]} 9. Nd5 {[%emt 0:00:06]} Nbd7 {[%emt 0:00:18]} 10. Qd3 {[%emt 0:00:06]} Bxd5 {[%emt 0:00:43]} 11. exd5 {[%emt 0:00:06]} Rc8 {[%emt 0:02:35] now supersedes 11...0-0.} 12. c4 {[%emt 0:00:30]} O-O {[%emt 0:00:16]} 13. O-O {[%emt 0:00:13]} Ne8 {[%emt 0:02:21] B92: Sicilian Najdorf: 6 Be2.} 14. a4 {[%emt 0:00:32]} Bg5 {[%emt 0:04:30]} 15. a5 {[%emt 0:02:01]} g6 {[%emt 0:06:21]} 16. Nd2 {[%emt 0:03:41]} f5 {[%emt 0:01:02]} 17. Bxg5 {[%emt 0:01:24]} Qxg5 {[%emt 0:00:03] [#]} 18. Rfd1 $146 {[%emt 0:00:50]} ({Predecessor:} 18. Rad1 e4 19. Qa3 Ne5 20. f3 exf3 21. Nxf3 Nxf3+ 22. Rxf3 Qd8 23. Rb3 Rf7 24. Re3 {½-½ (24) Seia,J (2478)-Wunderlich,H (2583) ICCF email 2020}) 18... e4 {[%emt 0:05:27]} 19. Qa3 {[%emt 0:06:19]} Ne5 {[%emt 0:01:51]} 20. Qe3 {[%emt 0:23:49]} (20. Qg3 $5 {[%cal Rg3g5]} Qh6 21. Ra3 $11) 20... Qxe3 {[%emt 0:08:54]} 21. fxe3 {[%emt 0:01:55]} Nf6 {[%emt 0:00:01]} 22. Ra4 {[%emt 0:14:53][%cal Ba1a4,Ba4b4,Bb4b6][%mdl 32]} Rf7 {[%emt 0:04:08]} 23. Rb4 {[%emt 0:00:44]} Rfc7 {[%emt 0:02:40]} 24. Rb6 {[%emt 0:03:44]} Ne8 {[%emt 0:00:31]} 25. Rc1 {[%emt 0:02:36][%cal Og2g4]} Nd7 {[%emt 0:02:23] Pair of Knights!} 26. Rb4 {[%emt 0:02:47]} Nef6 {[%emt 0:00:10] aiming for ...Nxd5.} 27. Rc3 {[%emt 0:06:49]} Nc5 {[%emt 0:01:02]} 28. Nb3 {[%emt 0:01:01]} Nd3 {[%emt 0:05:16]} (28... Nfd7 $11) 29. Bxd3 $14 {[%emt 0:04:17]} exd3 {[%emt 0:01:26]} 30. Nd2 {[%emt 0:01:03]} Rc5 $1 {[%emt 0:06:07]} 31. Rxd3 {[%emt 0:10:03]} Rxa5 {[%emt 0:00:29]} 32. Rxb7 {[%emt 0:01:43]} Ra1+ {[%emt 0:01:48]} 33. Kf2 {[%emt 0:00:34]} Ng4+ {[%emt 0:02:00]} 34. Kg3 {[%emt 0:03:40]} Rd1 {[%emt 0:00:39] [#]} 35. h3 $1 {[%emt 0:03:10]} Nf6 {[%emt 0:04:25][%cal Od1d2]} 36. Kf3 {[%emt 0:01:37]} Rxc4 $1 {[%emt 0:05:58]} 37. Nxc4 {[%emt 0:00:04]} Rxd3 {[%emt 0:00:03]} 38. Rb6 {[%emt 0:01:39]} Rxd5 {[%emt 0:00:07]} 39. Rxd6 {[%emt 0:03:33]} Rxd6 {[%emt 0:00:21]} 40. Nxd6 $11 {[%emt 0:00:01][%mdl 4096] Endgame KN-KN} Kf8 {[%emt 0:01:02]} 41. Nb7 {[%emt 0:34:01]} Ne4 {[%emt 0:31:00] Against Nc5} 42. Kf4 {[%emt 0:00:00] White wants to play Ke5.} Ke7 {[%emt 0:00:00]} 43. Ke5 {[%emt 0:00:00]} Kd7 $1 {[%emt 0:00:00]} 44. Kd5 {[%emt 0:00:00] Nc5+ is the strong threat.} Nf6+ $1 {[%emt 0:00:00]} 45. Kc5 {[%emt 0:00:00]} Kc7 {[%emt 0:00:00]} 46. Nd6 {[%emt 0:00:00]} Nd7+ {[%emt 0:00:00]} 47. Kd5 {[%emt 0:00:00]} Nb6+ {[%emt 0:00:00]} 48. Ke6 {[%emt 0:00:00]} Kc6 {[%emt 0:00:00]} 49. e4 {[%emt 0:00:00][%cal Od6f5] Against Nd5} fxe4 {[%emt 0:00:00]} 50. Nxe4 {[%emt 0:00:00]} Na4 {[%emt 0:00:00]} 51. Kf6 {[%emt 0:00:00]} Nxb2 {[%emt 0:00:00]} 52. Kg7 {[%emt 0:00:04]} Kd5 {[%emt 0:06:15]} 53. Nd2 {[%emt 0:00:11]} Nc4 {[%emt 0:00:53]} 54. Nb3 {[%emt 0:01:23] [#]} (54. Nxc4 Kxc4 55. Kxh7 a5) (54. Nb1 $1 $11) 54... Ne3 {[%emt 0:00:26]} (54... Ne5 $1 $17 {White must now prevent ...Kc4.} 55. Kxh7 Kc4) 55. g3 {[%emt 0:01:47]} Kc4 {[%emt 0:03:27]} 56. Na5+ {[%emt 0:00:38]} (56. Nc1 $11 {keeps the balance.}) 56... Kb5 {[%emt 0:00:04]} (56... Kb4 $17 57. Nc6+ Kc5) 57. Nb3 {[%emt 0:00:04] The position is equal.} Kb4 {[%emt 0:00:48]} 58. Nc1 {[%emt 0:00:10]} Nf5+ {[%emt 0:00:20]} 59. Kxh7 {[%emt 0:00:03]} Nxg3 {[%emt 0:00:03] ( -> ...Kc3)} 60. Kxg6 {[%emt 0:00:06]} a5 {[%emt 0:00:27][%cal Ba6a5,Ba5a4,Ba4a3][%mdl 32]} 61. h4 {[%emt 0:00:49]} a4 {[%emt 0:01:57]} 62. h5 {[%emt 0:00:03]} Nxh5 $1 {[%emt 0:00:03]} 63. Kxh5 {[%emt 0:00:03] KN-KP} a3 {[%emt 0:00:09]} 64. Kh6 {[%emt 0:00:29]} Kc3 {[%emt 0:00:07]} 65. Kh7 {[%emt 0:00:03]} Kc2 {[%emt 0:00:08]} (65... Kb2 $5 66. Nd3+ $8 Kc3 $11) 66. Na2 {[%emt 0:00:03]} Kb2 {[%emt 0:00:04]} 67. Nb4 {[%emt 0:00:03]} a2 {[%emt 0:00:05]} (67... Kb3 $5 68. Nd3 $8 Kc3 $11) 68. Nxa2 $1 {Weighted Error Value: White=0.10 (very precise) /Black=0.09 (flawless)} 1/2-1/2

[Event "37th ECCC 2022"]
[Site "Mayrhofen"]
[Date "2022.10.05"]
[Round "3.21"]
[White "Nihal Sarin"]
[Black "Bogner, Sebastian"]
[Result "1/2-1/2"]
[ECO "A28"]
[WhiteElo "2673"]
[BlackElo "2548"]
[Annotator "TA"]
[PlyCount "114"]
[EventDate "2022.10.03"]
[EventType "team-tourn"]
[EventCountry "AUT"]
[SourceTitle "playchess.com"]
[Source "ChessBase"]
[SourceQuality "1"]
[TimeControl "40/5400+30:1800+30"]

{[%evp 10,113,0,0,0,0,0,0,0,0,0,0,12,9,11,13,10,0,0,0,4,0,14,0,0,0,0,0,0,0,0,0,7,0,25,25,25,25,25,25,25,25,25,25,25,25,25,25,42,45,51,52,75,82,97,66,85,8,8,8,20,14,87,90,94,83,81,8,8,8,241,8,8,8,8,8,54,54,54,62,62,8,8,8,8,8,8,8,8,9,74,74,82,8,8,8,8,8,8,8,59,8,8,0,0,0]} 1. c4 {[%emt 0:00:31]} e5 {[%emt 0:01:07]} 2. Nc3 {[%emt 0:00:14]} Nf6 {[%emt 0:00:30]} 3. Nf3 {[%emt 0:00:08]} Nc6 {[%emt 0:00:05]} 4. d3 {[%emt 0:00:05]} d5 {[%emt 0:05:02]} 5. cxd5 Nxd5 {[%emt 0:00:05]} 6. e4 {[%emt 0:00:27]} Nb6 {[%emt 0:04:02] A28: English Opening: Four Knights Variation.} 7. Be2 {[%emt 0:02:29]} Be7 {[%emt 0:01:02]} 8. Be3 {[%emt 0:05:23]} O-O {[%emt 0:04:30]} 9. O-O {[%emt 0:00:18]} Be6 {[%emt 0:07:27]} 10. Rc1 {[%emt 0:09:02] [#]} Qd7 $146 {[%emt 0:05:24]} ({Predecessor:} 10... Bf6 11. Na4 Nxa4 12. Qxa4 Qd7 13. b3 Rfd8 14. h3 a5 15. Rfd1 Qe7 16. Bc5 Qd7 17. Rd2 h6 18. Be3 Qe7 19. Bc5 Qd7 20. Be3 Qe7 {½-½ (20) Kruse,H (2386)-De Vassal,T (2406) FICGS email 2013}) 11. d4 {[%emt 0:13:42]} exd4 {[%emt 0:00:04]} 12. Nxd4 {[%emt 0:00:06]} Nxd4 {[%emt 0:00:05]} 13. Qxd4 {[%emt 0:00:08]} Qxd4 {[%emt 0:07:19]} 14. Bxd4 {[%emt 0:00:09]} Rfd8 {[%emt 0:09:34]} 15. Rfd1 {[%emt 0:10:17]} c5 {[%emt 0:19:06]} 16. Be3 {[%emt 0:17:10]} Nc4 {[%emt 0:01:00]} 17. Bxc4 {[%emt 0:01:35]} Bxc4 {[%emt 0:00:06]} 18. b3 {[%emt 0:03:15]} Be6 {[%emt 0:00:04]} 19. f4 {[%emt 0:00:04]} g6 {[%emt 0:10:34] Prevents f5.} 20. Nb5 {[%emt 0:10:14]} b6 {[%emt 0:02:50]} 21. Nc7 {[%emt 0:02:25]} Rxd1+ {[%emt 0:06:13]} (21... Bg4 $5 {[%cal Rd8d1]} 22. Re1 Rac8 $11) 22. Rxd1 {[%emt 0:00:05]} Rd8 {[%emt 0:00:39]} 23. Rxd8+ {[%emt 0:00:06]} Bxd8 {[%emt 0:00:03]} 24. Nxe6 {[%emt 0:00:06]} fxe6 $11 {[%emt 0:00:03][%mdl 4096] Endgame KB-KB} 25. Kf2 {[%emt 0:01:23]} Kf7 {[%emt 0:00:54]} 26. g4 {[%emt 0:05:59]} Ke7 {[%emt 0:03:53]} 27. e5 {[%emt 0:02:50]} Kd7 {[%emt 0:03:27] Hoping for ...Kc6.} 28. Kf3 {[%emt 0:00:16]} Kc6 {[%emt 0:00:38]} 29. Ke4 {[%emt 0:00:22]} Be7 {[%emt 0:02:21]} 30. f5 {[%emt 0:01:38]} gxf5+ {[%emt 0:01:29]} 31. gxf5 {[%emt 0:00:16]} exf5+ {[%emt 0:04:09]} 32. Kxf5 {[%emt 0:00:18] Strongly threatening Ke6.} Kd5 {[%emt 0:00:30]} 33. e6 {[%emt 0:00:04]} (33. Bh6 $1 $16) 33... a6 {[%emt 0:00:59]} 34. Bf4 {[%emt 0:10:23]} b5 $1 {[%emt 0:00:08]} 35. Be5 {[%emt 0:00:04]} c4 {[%emt 0:00:11]} (35... Kc6 $11 {keeps the balance.}) 36. Bf6 $16 {[%emt 0:02:33]} Kd6 {[%emt 0:00:22] [#]} 37. bxc4 $1 {[%emt 0:02:02]} bxc4 {[%emt 0:00:06] [#]} 38. a4 {[%emt 0:02:46] White is more active.} ({White should try} 38. h3 $1 $16) 38... Bf8 $1 $11 {[%emt 0:01:21]} (38... Bxf6 $2 39. Kxf6 h5 40. e7 $18) 39. h3 {[%emt 0:00:24]} Bh6 $2 {[%emt 0:01:25]} (39... Be7 $11 {and Black is okay.}) 40. e7 $2 {[%emt 0:00:11]} ({Only move:} 40. Bc3 $18 Ke7 41. h4) 40... Kd7 {[%emt 0:00:08]} 41. Ke4 {[%emt 0:30:02]} Bc1 {[%emt 0:10:52]} 42. Kd5 {[%emt 0:00:00]} c3 {[%emt 0:01:21]} (42... Ba3 $11) 43. Bxc3 $14 {[%emt 0:00:00]} Kxe7 {[%emt 0:00:54]} 44. Kc6 {[%emt 0:00:00]} Be3 {[%emt 0:00:45]} 45. a5 {[%emt 0:00:00]} (45. Kb7 $14 Kd6 46. Ba5 (46. Kxa6 Kc6 $16)) 45... Kd8 $11 {[%emt 0:00:27]} 46. Kb7 {[%emt 0:00:00]} Kd7 {[%emt 0:00:06]} 47. Kxa6 {[%emt 0:00:00] Black must now prevent Kb7.} Kc6 {[%emt 0:00:21]} 48. Bf6 {[%emt 0:00:00]} h5 {[%emt 0:03:22]} 49. Bd8 {[%emt 0:00:00]} Bf2 {[%emt 0:02:21]} (49... Bf4 $11 {remains equal.}) 50. Bb6 {[%emt 0:00:00]} Bg3 {[%emt 0:01:35]} 51. Ka7 {[%emt 0:00:00]} (51. Ba7 $16) 51... Be5 {[%emt 0:00:26]} 52. a6 {[%emt 0:00:00]} Bg3 {[%emt 0:00:29]} 53. Be3 {[%emt 0:00:00]} Kc7 {[%emt 0:01:34]} 54. Ka8 {[%emt 0:00:00]} Kc8 {[%emt 0:01:32]} ({Better is} 54... Be5 $11) 55. a7 {[%emt 0:00:00]} (55. Ba7 $14) 55... Be5 {[%emt 0:00:26] The position is equal.} 56. Bf4 {[%emt 0:00:00]} Bxf4 {[%emt 0:00:19]} 57. h4 {[%emt 0:00:00]} Bg3 {[%emt 0:01:45] Weighted Error Value: White=0.20 (precise) /Black=0.17 (very precise)} 1/2-1/2

[Event "37th ECCC 2022"]
[Site "Mayrhofen"]
[Date "2022.10.05"]
[Round "3.22"]
[White "Johansson, Linus"]
[Black "Volokitin, Andrei"]
[Result "1/2-1/2"]
[ECO "E50"]
[WhiteElo "2461"]
[BlackElo "2645"]
[Annotator "TA"]
[PlyCount "76"]
[EventDate "2022.10.03"]
[EventType "team-tourn"]
[EventCountry "AUT"]
[SourceTitle "playchess.com"]
[Source "ChessBase"]
[SourceQuality "1"]
[TimeControl "40/5400+30:1800+30"]

{[%evp 12,76,4,0,0,15,33,12,30,7,31,38,42,48,28,0,47,30,45,16,15,0,0,0,0,0,0,0,2,-6,-7,-10,0,0,0,0,0,0,3,4,9,0,0,0,0,0,0,0,0,0,0,0,0,0,0,0,0,0,0,0,0,0,0,0,0,0,0]} 1. d4 {[%emt 0:00:03]} Nf6 {[%emt 0:00:21]} 2. c4 {[%emt 0:00:05]} e6 {[%emt 0:00:22]} 3. Nc3 {[%emt 0:00:05]} Bb4 {[%emt 0:00:07]} 4. e3 {[%emt 0:00:05]} O-O {[%emt 0:00:25]} 5. Nf3 {[%emt 0:00:07]} c5 {[%emt 0:01:21]} 6. Bd3 {[%emt 0:00:21]} d5 {[%emt 0:00:28]} 7. cxd5 {[%emt 0:01:34]} exd5 {[%emt 0:02:41] E53: Nimzo-Indian: Rubinstein: Main Line (4...0-0 5 Nf3 d5 6 Bd3 c5 7 0-0).} 8. dxc5 {[%emt 0:00:22]} Bg4 {[%emt 0:28:11]} 9. O-O {[%emt 0:00:08]} Nbd7 {[%emt 0:11:19]} 10. Bd2 {[%emt 0:00:10] [#]} Ne5 $146 {[%emt 0:05:55]} ({Predecessor:} 10... Rc8 11. Be2 Bxc5 12. Qb3 Bd6 13. Nxd5 Nxd5 14. Qxd5 Ne5 15. Rfd1 Rc2 16. Be1 Rxe2 17. Nxe5 Bxe5 18. Qxe5 Rxe3 19. Qxe3 Bxd1 20. Qxa7 {½-½ (41) Ding,L (2806)-Carlsen,M (2864) chess24.com INT 2022}) 11. Be2 {[%emt 0:00:22]} Bxf3 {[%emt 0:03:04]} 12. Bxf3 {[%emt 0:00:07]} Bxc5 {[%emt 0:00:28]} 13. Be2 {[%emt 0:17:07]} a6 {[%emt 0:01:38]} (13... d4 $11 {is superior.} 14. exd4 Bxd4) 14. Qb3 $14 {[%emt 0:00:22]} b5 {[%emt 0:19:18][%cal Bb7b5,Bb5b4][%mdl 32]} 15. Rad1 {[%emt 0:06:06]} Ra7 {[%emt 0:01:33] The position is equal.} 16. Bc1 {[%emt 0:21:35][%cal Rc3d5]} Rd7 {[%emt 0:00:23]} 17. a4 {[%emt 0:00:05]} b4 {[%emt 0:00:27]} 18. Nb1 {[%emt 0:00:14]} Qb6 {[%emt 0:05:58]} 19. Nd2 {[%emt 0:01:03]} d4 {[%emt 0:09:05]} 20. Nf3 {[%emt 0:09:32]} Nxf3+ {[%emt 0:03:16]} 21. Bxf3 {[%emt 0:00:06]} Rfd8 {[%emt 0:03:12]} 22. exd4 {[%emt 0:03:47]} Rxd4 {[%emt 0:00:05]} 23. Rxd4 {[%emt 0:04:24]} Bxd4 {[%emt 0:00:01]} 24. g3 {[%emt 0:07:43]} Qc5 {[%emt 0:00:43][%cal Od4f2] Prevents Qc4.} 25. Kg2 {[%emt 0:02:00]} h5 {[%emt 0:01:49]} 26. Rd1 {[%emt 0:05:48]} Ng4 {[%emt 0:00:11]} 27. Be3 {[%emt 0:03:17]} Nxe3+ {[%emt 0:00:16]} 28. fxe3 {[%emt 0:00:04]} Bf6 {[%emt 0:00:03]} 29. Rxd8+ {[%emt 0:02:21]} Bxd8 {[%emt 0:00:01]} 30. Qd5 {[%emt 0:01:29]} Qxd5 {[%emt 0:02:14]} 31. Bxd5 $11 {[%emt 0:00:10][%mdl 4096] Endgame KB-KB} a5 {[%emt 0:00:08]} 32. b3 {[%emt 0:00:18]} g6 {[%emt 0:00:24]} 33. h4 {[%emt 0:00:26]} Kg7 {[%emt 0:00:22]} 34. Kf3 {[%emt 0:00:06]} Bc7 {[%emt 0:00:43]} 35. Bc4 {[%emt 0:00:14]} f5 {[%emt 0:00:45]} 36. Bb5 {[%emt 0:00:19]} Kf7 {[%emt 0:00:19]} 37. Kf2 {[%emt 0:00:46]} Ke7 {[%emt 0:00:26]} 38. Kf3 {[%emt 0:00:06]} Bd6 {[%emt 0:00:12] Weighted Error Value: White=0.05 (flawless) /Black=0.06 (flawless)} 1/2-1/2